bitfinex/quotes_BTCUSD_20250225
["timestamp","ask_amount","ask_price","bid_price","bid_amount"]
[1740455371482,7.0326654,92833.0,92832.0,0.0046964]
[1740455373182,7.0336654,92833.0,92832.0,0.0046964]
[1740455373374,6.9047654,92833.0,92832.0,0.0046964]
[1740455373876,6.9037654,92833.0,92832.0,0.0046964]
[1740455374081,6.9047654,92833.0,92832.0,0.0046964]
[1740455374490,6.9037654,92833.0,92832.0,0.0046964]
[1740455374864,6.9047654,92833.0,92832.0,0.0046964]
[1740455375861,6.92167099,92833.0,92832.0,0.0046964]
[1740455377466,7.00167099,92833.0,92832.0,0.0046964]
[1740455379779,6.92167099,92833.0,92832.0,0.0046964]
[1740455380398,6.9047654,92833.0,92832.0,0.0046964]
[1740455381993,6.9047654,92833.0,92832.0,0.0216964]
[1740455382194,6.9047654,92833.0,92832.0,0.03151604]
[1740455383729,6.92066941,92833.0,92832.0,0.03151604]
[1740455383936,6.92066941,92833.0,92832.0,0.02851604]
[1740455384156,6.92166941,92833.0,92832.0,0.03151604]
[1740455384362,6.92166941,92833.0,92832.0,0.02851604]
[1740455384742,6.9047654,92833.0,92832.0,0.03451604]
[1740455385393,6.9037654,92833.0,92832.0,0.03451604]
[1740455385639,6.9037654,92833.0,92832.0,0.03651604]
[1740455386350,6.9037654,92833.0,92832.0,0.0266964]
[1740455388127,6.92066954,92833.0,92832.0,0.0266964]
[1740455388335,6.92066954,92833.0,92832.0,0.0366964]
[1740455388515,6.9037654,92833.0,92832.0,0.0366964]
[1740455391833,6.92066925,92833.0,92832.0,0.0366964]
[1740455392599,6.92066925,92833.0,92832.0,0.04236604]
[1740455393435,6.92066925,92833.0,92832.0,0.0266964]
[1740455393637,6.92066925,92833.0,92832.0,0.0096964]
[1740455393841,6.92066925,92833.0,92832.0,0.0266964]
[1740455396300,6.9037654,92833.0,92832.0,0.0266964]
[1740455399888,6.9037654,92833.0,92832.0,0.0366964]
[1740455400082,6.9037654,92833.0,92832.0,0.04236604]
[1740455401603,6.9037654,92833.0,92832.0,0.06236604]
[1740455402576,6.7537654,92833.0,92832.0,0.06236604]
[1740455402783,6.9037654,92833.0,92832.0,0.0266964]
[1740455402991,6.9037654,92833.0,92832.0,0.0366964]
[1740455403328,6.9037654,92833.0,92832.0,0.0076964]
[1740455403929,6.9037654,92833.0,92832.0,0.0016964]
[1740455404283,6.9037654,92833.0,92832.0,0.0256964]
[1740455404482,6.9037654,92833.0,92832.0,0.0186964]
[1740455404619,6.9037654,92833.0,92832.0,0.0306964]
[1740455404845,6.9037654,92833.0,92832.0,0.0376964]
[1740455405065,6.9037654,92833.0,92832.0,0.0356964]
[1740455405262,6.77066936,92833.0,92832.0,0.05396604]
[1740455405465,6.77166936,92833.0,92832.0,0.07396604]
[1740455405673,6.77166936,92833.0,92832.0,0.06696604]
[1740455405875,6.77066936,92833.0,92832.0,0.05996604]
[1740455406119,6.77066936,92833.0,92832.0,0.06496604]
[1740455406970,6.77066936,92833.0,92832.0,0.07196604]
[1740455407506,6.7537654,92833.0,92832.0,0.06496604]
[1740455407699,6.7537654,92833.0,92832.0,0.05996604]
[1740455407911,6.7547654,92833.0,92832.0,0.06696604]
[1740455408116,6.7547654,92833.0,92832.0,0.07396604]
[1740455408325,6.7547654,92833.0,92832.0,0.05996604]
[1740455408527,6.7537654,92833.0,92832.0,0.05996604]
[1740455408730,6.7547654,92833.0,92832.0,0.07396604]
[1740455409238,6.7537654,92833.0,92832.0,0.06696604]
[1740455409433,6.7547654,92833.0,92832.0,0.07396604]
[1740455410046,6.7547654,92833.0,92832.0,0.06696604]
[1740455410468,6.77166793,92833.0,92832.0,0.07396604]
[1740455410898,6.50988814,92833.0,92832.0,0.04700604]
[1740455411131,6.51088814,92833.0,92832.0,0.0427364]
[1740455411599,6.49398561,92833.0,92832.0,0.0257364]
[1740455411924,6.49298561,92833.0,92832.0,0.0256964]
[1740455412111,6.64398561,92833.0,92832.0,0.0326964]
[1740455412347,6.64398561,92833.0,92832.0,0.0427364]
[1740455412557,6.64298561,92833.0,92832.0,0.04201004]
[1740455412764,6.64398561,92833.0,92832.0,0.04901004]
[1740455413407,6.64398561,92833.0,92832.0,0.04201004]
[1740455413610,6.64398561,92833.0,92832.0,0.04901004]
[1740455414145,6.64298561,92833.0,92832.0,0.04201004]
[1740455414582,6.64398561,92833.0,92832.0,0.04901004]
[1740455414994,6.64298561,92833.0,92832.0,0.0357364]
[1740455415282,6.64398561,92833.0,92832.0,0.0156964]
[1740455415749,6.72028561,92833.0,92832.0,0.0086964]
[1740455415989,6.72128561,92833.0,92832.0,0.0156964]
[1740455416211,6.72128561,92833.0,92832.0,0.0086964]
[1740455416655,6.72128561,92833.0,92832.0,0.0156964]
[1740455416885,6.72128561,92833.0,92832.0,0.0086964]
[1740455417115,6.72128561,92833.0,92832.0,0.0146964]
[1740455417319,6.72028561,92833.0,92832.0,0.0076964]
[1740455417525,6.72028561,92833.0,92832.0,0.0116964]
[1740455417953,6.72028561,92833.0,92832.0,0.0076964]
[1740455418359,6.72028561,92833.0,92832.0,0.0096964]
[1740455419351,6.76888561,92833.0,92832.0,0.0096964]
[1740455420009,6.76888561,92833.0,92832.0,0.0036964]
[1740455420204,6.76888561,92833.0,92832.0,0.0096964]
[1740455420402,6.76888561,92833.0,92832.0,0.0076964]
[1740455420581,6.76888561,92833.0,92832.0,0.0036964]
[1740455420788,6.76888561,92833.0,92832.0,0.0096964]
[1740455421230,6.76888561,92833.0,92832.0,0.0076964]
[1740455421432,6.76888561,92833.0,92832.0,0.0096964]
[1740455423059,6.78579123,92833.0,92832.0,0.0096964]
[1740455423460,6.76888561,92833.0,92832.0,0.0096964]
[1740455423662,6.76888561,92833.0,92832.0,0.0016964]
[1740455423859,6.76888561,92833.0,92832.0,0.0076964]
[1740455424080,6.76888561,92833.0,92832.0,0.0096964]
[1740455424277,6.76888561,92833.0,92832.0,0.0036964]
[1740455424524,6.76888561,92833.0,92832.0,0.0066964]
[1740455424727,6.64298561,92833.0,92832.0,0.0066964]
[1740455424935,6.64298561,92833.0,92832.0,0.0086964]
[1740455426124,6.64298561,92833.0,92832.0,0.0036964]
[1740455426326,6.64298561,92833.0,92832.0,0.0016964]
[1740455426642,6.64298561,92833.0,92832.0,0.0096964]
[1740455427227,6.64298561,92833.0,92832.0,0.0076964]
[1740455427424,6.6598909,92833.0,92832.0,0.0076964]
[1740455427661,6.6598909,92833.0,92832.0,0.0096964]
[1740455427829,6.64298561,92833.0,92832.0,0.0266964]
[1740455428784,6.64298561,92833.0,92832.0,0.3490964]
[1740455428968,6.64298561,92833.0,92832.0,0.38400604]
[1740455429362,6.64298561,92833.0,92832.0,0.37600604]
[1740455429795,6.64298561,92833.0,92832.0,0.38500604]
[1740455430611,6.65988962,92833.0,92832.0,0.38500604]
[1740455431404,6.65988962,92833.0,92832.0,0.3500964]
[1740455440411,6.64298561,92833.0,92832.0,0.3500964]
[1740455441722,6.72118561,92833.0,92832.0,0.3330964]
[1740455442979,6.72118561,92833.0,92832.0,0.3300964]
[1740455443195,6.72118561,92833.0,92832.0,0.3280964]
[1740455443531,6.72118561,92833.0,92832.0,0.3340964]
[1740455443807,6.73809036,92833.0,92832.0,0.3340964]
[1740455444229,6.73809036,92833.0,92832.0,0.36850604]
[1740455444230,6.65989036,92833.0,92832.0,0.36850604]
[1740455444439,6.65989036,92833.0,92832.0,0.38550604]
[1740455444781,6.64298561,92833.0,92832.0,0.38550604]
[1740455445408,6.64298561,92833.0,92832.0,0.38150604]
[1740455445561,6.64298561,92833.0,92832.0,0.38550604]
[1740455446088,6.64298561,92833.0,92832.0,0.3510964]
[1740455446529,6.64298561,92833.0,92832.0,0.3450964]
[1740455446879,6.64298561,92833.0,92832.0,0.3610964]
[1740455448791,6.64298561,92833.0,92832.0,0.3440964]
[1740455449226,6.41126382,92833.0,92832.0,0.3440964]
[1740455449481,6.41126382,92833.0,92832.0,0.38020604]
[1740455449648,6.41126382,92833.0,92832.0,0.3440964]
[1740455449854,6.41126382,92833.0,92832.0,0.3340964]
[1740455450060,6.41126382,92833.0,92832.0,0.3280964]
[1740455450657,6.41126382,92833.0,92832.0,0.0116964]
[1740455451510,6.41126382,92833.0,92832.0,0.0076964]
[1740455451719,6.41126382,92833.0,92832.0,0.0116964]
[1740455452383,6.42816821,92833.0,92832.0,0.0116964]
[1740455454368,6.42816821,92833.0,92832.0,0.05780604]
[1740455456313,6.42816821,92833.0,92832.0,0.06480604]
[1740455456516,6.42816821,92833.0,92832.0,0.07480604]
[1740455460268,6.42816821,92833.0,92832.0,0.39720604]
[1740455460722,6.41126382,92833.0,92832.0,0.39720604]
[1740455463870,6.42816704,92833.0,92832.0,0.39720604]
[1740455464070,6.42816704,92833.0,92832.0,0.3610964]
[1740455464876,6.41126382,92833.0,92832.0,0.3610964]
[1740455466317,6.13564334,92833.0,92832.0,0.3610964]
[1740455471930,6.13564334,92833.0,92832.0,0.4892964]
[1740455472598,5.98564334,92833.0,92832.0,1.0467964]
[1740455472798,5.98564334,92833.0,92832.0,1.14147604]
[1740455473002,5.98564334,92833.0,92832.0,1.15247604]
[1740455473474,5.98564334,92833.0,92832.0,1.14547604]
[1740455473675,5.98564334,92833.0,92832.0,1.14847604]
[1740455473821,5.98664334,92833.0,92832.0,1.15547604]
[1740455474069,5.98664334,92833.0,92832.0,1.14847604]
[1740455474276,5.98564334,92833.0,92832.0,1.14147604]
[1740455474663,5.98664334,92833.0,92832.0,1.14847604]
[1740455474859,5.98664334,92833.0,92832.0,1.15547604]
[1740455475271,5.98664334,92833.0,92832.0,1.14547604]
[1740455475475,5.98664334,92833.0,92832.0,1.15547604]
[1740455475671,5.98664334,92833.0,92832.0,1.14847604]
[1740455475935,5.98564334,92833.0,92832.0,1.14847604]
[1740455476145,5.98664334,92833.0,92832.0,1.15547604]
[1740455476556,6.00254519,92833.0,92832.0,1.14147604]
[1740455476926,6.00254519,92833.0,92832.0,1.15547604]
[1740455477164,6.00354519,92833.0,92832.0,1.15547604]
[1740455477559,5.98564334,92833.0,92832.0,1.14847604]
[1740455477967,5.98664334,92833.0,92832.0,1.15547604]
[1740455478137,5.98664334,92833.0,92832.0,1.14847604]
[1740455478462,5.98664334,92833.0,92832.0,1.18790804]
[1740455479097,5.98664334,92833.0,92832.0,0.48977604]
[1740455479351,5.98564334,92833.0,92832.0,0.3580964]
[1740455479567,5.98664334,92833.0,92832.0,0.3850964]
[1740455479743,5.98664334,92833.0,92832.0,0.3780964]
[1740455479979,5.98664334,92833.0,92832.0,0.3710964]
[1740455479980,5.98564334,92833.0,92832.0,0.3710964]
[1740455480198,5.98564334,92833.0,92832.0,0.3780964]
[1740455480362,5.98664334,92833.0,92832.0,0.42674944]
[1740455480571,5.82726411,92833.0,92832.0,1.0381964]
[1740455480782,5.82626411,92833.0,92832.0,1.0381964]
[1740455480933,5.80936213,92833.0,92832.0,1.0381964]
[1740455481140,5.80936213,92833.0,92832.0,1.0451964]
[1740455481141,5.81036213,92833.0,92832.0,1.0451964]
[1740455481562,5.81036213,92833.0,92832.0,1.0381964]
[1740455481756,5.81036213,92833.0,92832.0,1.0451964]
[1740455482389,5.80936213,92833.0,92832.0,1.0381964]
[1740455482683,5.80936213,92833.0,92832.0,1.0451964]
[1740455483014,5.80936213,92833.0,92832.0,1.0351964]
[1740455483139,5.80936213,92833.0,92832.0,1.0311964]
[1740455483346,5.80936213,92833.0,92832.0,1.1591964]
[1740455483746,5.80936213,92833.0,92832.0,1.1521964]
[1740455484204,5.82626196,92833.0,92832.0,1.1591964]
[1740455484816,5.82626196,92833.0,92832.0,1.1521964]
[1740455485017,5.82626196,92833.0,92832.0,1.1591964]
[1740455485213,5.80936213,92833.0,92832.0,1.1591964]
[1740455485638,5.80936213,92833.0,92832.0,1.1521964]
[1740455486020,5.80936213,92833.0,92832.0,1.1591964]
[1740455486840,5.80936213,92833.0,92832.0,1.1451964]
[1740455487048,5.80936213,92833.0,92832.0,1.1521964]
[1740455487243,5.80936213,92833.0,92832.0,1.1591964]
[1740455488069,5.80936213,92833.0,92832.0,0.9911964]
[1740455488324,5.80936213,92833.0,92832.0,1.0181964]
[1740455488529,5.80936213,92833.0,92832.0,1.0251964]
[1740455488945,5.80936213,92833.0,92832.0,0.9493964]
[1740455489174,5.80936213,92833.0,92832.0,0.9423964]
[1740455489569,5.80936213,92833.0,92832.0,0.9493964]
[1740455489765,5.80936213,92833.0,92832.0,0.9423964]
[1740455489913,5.80936213,92833.0,92832.0,0.8955964]
[1740455490126,5.80936213,92833.0,92832.0,0.8885964]
[1740455490330,5.80936213,92833.0,92832.0,0.8955964]
[1740455490524,5.80936213,92833.0,92832.0,0.9225964]
[1740455490902,5.80936213,92833.0,92832.0,0.9085964]
[1740455491074,5.80936213,92833.0,92832.0,0.9155964]
[1740455491534,5.80936213,92833.0,92832.0,0.9055964]
[1740455491707,5.80936213,92833.0,92832.0,0.9225964]
[1740455492726,5.82626384,92833.0,92832.0,0.9225964]
[1740455493182,5.82626384,92833.0,92832.0,0.9155964]
[1740455493388,5.82626384,92833.0,92832.0,0.8955964]
[1740455493890,5.90456384,92833.0,92832.0,0.3410964]
[1740455494086,5.88766213,92833.0,92832.0,0.3410964]
[1740455494343,5.88766213,92833.0,92832.0,0.3510964]
[1740455494559,6.03766213,92833.0,92832.0,0.3310964]
[1740455494775,6.03766213,92833.0,92832.0,0.3480964]
[1740455494988,6.03766213,92833.0,92832.0,0.3410964]
[1740455496206,6.03766213,92833.0,92832.0,0.3340964]
[1740455496355,6.03766213,92833.0,92832.0,0.3410964]
[1740455496566,6.03866213,92833.0,92832.0,0.3410964]
[1740455496991,6.03766213,92833.0,92832.0,0.3410964]
[1740455497519,6.03866213,92833.0,92832.0,0.3480964]
[1740455497657,6.03866213,92833.0,92832.0,0.3380964]
[1740455498062,6.03766213,92833.0,92832.0,0.3240964]
[1740455498269,6.03866213,92833.0,92832.0,0.3310964]
[1740455499701,5.96036213,92833.0,92832.0,0.3480964]
[1740455500108,5.95936213,92833.0,92832.0,0.3410964]
[1740455500226,5.96036213,92833.0,92832.0,0.3550964]
[1740455500426,5.96036213,92833.0,92832.0,0.3650964]
[1740455500842,5.95936213,92833.0,92832.0,0.3580964]
[1740455501071,5.96036213,92833.0,92832.0,0.3580964]
[1740455501427,5.96036213,92833.0,92832.0,0.3650964]
[1740455501637,5.95936213,92833.0,92832.0,0.3510964]
[1740455501846,5.95936213,92833.0,92832.0,0.3580964]
[1740455502055,5.97626543,92833.0,92832.0,0.3580964]
[1740455502271,5.97626543,92833.0,92832.0,0.3510964]
[1740455502894,5.97726543,92833.0,92832.0,0.3580964]
[1740455503995,5.97726543,92833.0,92832.0,0.3650964]
[1740455504214,5.97726543,92833.0,92832.0,0.3580964]
[1740455504614,5.97726543,92833.0,92832.0,0.3650964]
[1740455504812,5.97726543,92833.0,92832.0,0.9025964]
[1740455505053,5.97726543,92833.0,92832.0,0.9029164]
[1740455505253,5.97726543,92833.0,92832.0,0.9353514]
[1740455508260,5.97726543,92833.0,92832.0,0.9283514]
[1740455508646,5.97726543,92833.0,92832.0,0.9353514]
[1740455509118,5.97626543,92833.0,92832.0,0.9283514]
[1740455509297,5.97726543,92833.0,92832.0,0.9353514]
[1740455510605,5.96036213,92833.0,92832.0,0.9083514]
[1740455510855,6.00956213,92833.0,92832.0,0.3384164]
[1740455511928,6.00956213,92833.0,92832.0,0.3314164]
[1740455512190,6.00856213,92833.0,92832.0,0.0020164]
[1740455512438,6.01056213,92833.0,92832.0,0.0160164]
[1740455512660,6.09166213,92833.0,92832.0,0.0160164]
[1740455512874,6.09066213,92833.0,92832.0,0.0090164]
[1740455514296,6.08966213,92833.0,92832.0,0.0020164]
[1740455514513,6.08966213,92833.0,92832.0,0.0060164]
[1740455514967,6.08966213,92833.0,92832.0,0.0020164]
[1740455515145,6.18925063,92833.0,92832.0,0.0060164]
[1740455515555,6.18925063,92833.0,92832.0,0.0070164]
[1740455515779,6.08966213,92833.0,92832.0,0.0070164]
[1740455518670,6.08966213,92833.0,92832.0,0.0020164]
[1740455518898,6.08966213,92833.0,92832.0,0.0040164]
[1740455519532,6.09266213,92833.0,92832.0,0.0040164]
[1740455521876,6.09566213,92833.0,92832.0,0.0040164]
[1740455522308,6.09627848,92833.0,92832.0,0.0040164]
[1740455522703,0.0768,92824.0,92819.0,0.24256]
[1740455522875,0.1296,92822.0,92819.0,0.22639301]
[1740455523073,0.0498,92812.0,92791.0,0.3224]
[1740455523277,0.0768,92807.0,92784.0,0.01]
[1740455523477,0.0789,92804.0,92776.0,0.3224]
[1740455524550,0.0789,92804.0,92784.0,0.001]
[1740455524696,0.00188587,92803.0,92784.0,0.001]
[1740455524902,0.0799,92802.0,92776.0,0.3224]
[1740455525122,0.0799,92800.0,92776.0,0.3224]
[1740455525326,0.0476,92797.0,92776.0,0.3224]
[1740455525527,0.00188595,92796.0,92776.0,0.3324]
[1740455525723,0.0799,92795.0,92776.0,0.3324]
[1740455526077,0.15,92796.0,92776.0,0.3324]
[1740455526078,0.0799,92793.0,92776.0,0.3324]
[1740455526252,0.15188607,92792.0,92776.0,0.3324]
[1740455526458,0.003,92789.0,92776.0,0.01]
[1740455526707,0.23418623,92788.0,92776.0,0.01]
[1740455526907,0.2323,92788.0,92776.0,0.01]
[1740455527033,0.2323,92788.0,92775.0,0.2426]
[1740455528467,0.0823,92788.0,92775.0,0.2476]
[1740455528671,0.0823,92788.0,92775.0,0.2496]
[1740455529073,0.0803,92795.0,92775.0,0.2496]
[1740455529515,0.15,92794.0,92775.0,0.2496]
[1740455530074,0.003,92790.0,92775.0,0.2496]
[1740455530297,0.00188621,92789.0,92775.0,0.2496]
[1740455530548,0.00188621,92789.0,92775.0,0.2476]
[1740455530949,0.0822,92788.0,92775.0,0.2476]
[1740455531165,0.00188622,92787.0,92775.0,0.2426]
[1740455531386,0.0822,92788.0,92775.0,0.2446]
[1740455531620,0.003,92783.0,92775.0,0.001]
[1740455531835,0.003,92773.0,92746.0,0.3088842]
[1740455532047,0.03244654,92772.0,92746.0,0.3088842]
[1740455532255,0.0828,92768.0,92746.0,0.3088842]
[1740455532461,0.00188662,92767.0,92746.0,0.3088842]
[1740455532711,0.0828,92768.0,92746.0,0.3088842]
[1740455533118,0.0828429,92768.0,92746.0,0.3088842]
[1740455534677,0.00188659,92767.0,92746.0,0.3088842]
[1740455534901,0.17565954,92767.0,92746.0,0.3088842]
[1740455535101,0.15,92767.0,92746.0,0.3088842]
[1740455535856,0.15,92767.0,92747.0,0.01008]
[1740455536619,4.29e-05,92768.0,92747.0,0.01008]
[1740455536876,0.01691793,92763.0,92747.0,0.01008]
[1740455537035,0.01691793,92763.0,92748.0,0.3088842]
[1740455537867,4.29e-05,92768.0,92748.0,0.3088842]
[1740455538228,0.002,92763.0,92748.0,0.3088842]
[1740455538667,4.29e-05,92768.0,92748.0,0.3098842]
[1740455539221,0.0040429,92768.0,92748.0,0.3088842]
[1740455539415,0.0040429,92768.0,92748.0,0.3098842]
[1740455539571,0.0040429,92768.0,92748.0,0.3088842]
[1740455539794,0.0807,92766.0,92749.0,0.01004]
[1740455540014,0.00188666,92765.0,92749.0,0.01004]
[1740455540251,0.0807,92766.0,92749.0,0.01004]
[1740455540568,0.0807,92766.0,92748.0,0.3088842]
[1740455540970,0.0837,92766.0,92748.0,0.3088842]
[1740455541368,0.0807,92766.0,92749.0,0.001]
[1740455541648,0.0807,92766.0,92748.0,0.3088842]
[1740455541830,0.0837,92766.0,92748.0,0.3088842]
[1740455542005,0.0837,92766.0,92748.0,0.3098842]
[1740455542203,0.0807,92766.0,92748.0,0.3088842]
[1740455542749,0.0807,92766.0,92749.0,0.001]
[1740455542948,0.08926296,92766.0,92748.0,0.3088842]
[1740455543181,0.0807,92766.0,92748.0,0.3098842]
[1740455543384,0.00188666,92765.0,92748.0,0.3098842]
[1740455543514,0.0837,92766.0,92748.0,0.3098842]
[1740455544146,0.0807,92766.0,92748.0,0.3199242]
[1740455544370,0.0837,92766.0,92748.0,0.3189242]
[1740455544835,0.0807,92766.0,92748.0,0.3199242]
[1740455545236,0.003,92766.0,92748.0,0.3199242]
[1740455545977,0.003,92766.0,92748.0,0.3189242]
[1740455546216,0.003,92766.0,92748.0,0.3199242]
[1740455546655,4.29e-05,92768.0,92748.0,0.3199242]
[1740455546656,4.29e-05,92768.0,92748.0,0.3098842]
[1740455546847,0.02314295,92767.0,92749.0,0.01004]
[1740455547053,0.004,92766.0,92749.0,0.01004]
[1740455547414,0.0008916,92768.0,92749.0,0.01004]
[1740455547610,0.003,92766.0,92749.0,0.01004]
[1740455548216,0.0008916,92768.0,92749.0,0.01004]
[1740455548441,0.004,92766.0,92749.0,0.01004]
[1740455549116,0.004,92766.0,92749.0,0.001]
[1740455549320,0.003,92764.0,92748.0,0.3088842]
[1740455549498,0.01691814,92762.0,92748.0,0.3088842]
[1740455550855,0.01691814,92762.0,92749.0,0.001]
[1740455551033,0.01691814,92762.0,92748.0,0.3088842]
[1740455551235,0.0008916,92768.0,92748.0,0.3118842]
[1740455551438,0.002,92762.0,92748.0,0.3118842]
[1740455551620,0.002,92762.0,92748.0,0.3088842]
[1740455551816,0.002,92762.0,92748.0,0.3118842]
[1740455552278,0.002,92762.0,92748.0,0.3088842]
[1740455552478,0.002,92762.0,92748.0,0.3098842]
[1740455553450,0.00277822,92768.0,92748.0,0.3098842]
[1740455553655,0.00188662,92767.0,92748.0,0.3088842]
[1740455553934,0.002,92762.0,92748.0,0.3088842]
[1740455554127,0.002,92762.0,92748.0,0.3108842]
[1740455554339,0.002,92762.0,92748.0,0.3088842]
[1740455554721,0.003,92766.0,92748.0,0.3088842]
[1740455554924,0.00188672,92765.0,92748.0,0.3088842]
[1740455555544,0.02840154,92775.0,92748.0,0.3118842]
[1740455555743,0.02840154,92775.0,92748.0,0.30931389]
[1740455555953,0.00135769,92774.0,92748.0,0.30931389]
[1740455556767,0.002,92762.0,92748.0,0.30931389]
[1740455557126,0.00135769,92774.0,92748.0,0.31031389]
[1740455557487,0.00835769,92774.0,92748.0,0.30931389]
[1740455557605,0.01035769,92774.0,92748.0,0.30931389]
[1740455557806,0.00335769,92774.0,92749.0,0.0773]
[1740455558217,0.002,92762.0,92749.0,0.0773]
[1740455559645,0.002,92774.0,92749.0,0.0773]
[1740455560033,0.00135769,92773.0,92749.0,0.0773]
[1740455560463,0.00135769,92773.0,92749.0,0.0803]
[1740455560667,0.00135769,92773.0,92749.0,0.0773]
[1740455560822,0.002,92762.0,92749.0,0.0773]
[1740455561022,0.002,92762.0,92748.0,0.31101129]
[1740455561266,0.00135769,92773.0,92748.0,0.31101129]
[1740455561465,0.00235769,92773.0,92748.0,0.31101129]
[1740455561670,0.00835769,92773.0,92748.0,0.31101129]
[1740455561880,0.00735769,92773.0,92748.0,0.31101129]
[1740455562837,0.00135769,92773.0,92748.0,0.31101129]
[1740455563189,0.002,92762.0,92748.0,0.31401129]
[1740455563386,0.002,92762.0,92748.0,0.31101129]
[1740455563586,0.00135769,92773.0,92748.0,0.29409354]
[1740455563784,0.00835769,92773.0,92748.0,0.29409354]
[1740455564241,0.00835769,92773.0,92748.0,0.00212709]
[1740455564531,0.00135769,92773.0,92748.0,0.00212709]
[1740455564760,0.002,92762.0,92748.0,0.00212709]
[1740455565998,0.00235769,92773.0,92748.0,0.00212709]
[1740455566197,0.00735769,92773.0,92748.0,0.00212709]
[1740455566609,0.00235769,92773.0,92748.0,0.00212709]
[1740455566993,0.002,92762.0,92748.0,0.00212709]
[1740455567221,0.002,92762.0,92748.0,0.00512709]
[1740455567517,0.00135769,92773.0,92748.0,0.00212709]
[1740455567769,0.02641848,92773.0,92748.0,0.00212709]
[1740455567978,0.00835769,92773.0,92748.0,0.00212709]
[1740455568180,0.00835769,92773.0,92748.0,0.00512709]
[1740455569040,0.007,92773.0,92749.0,0.1262]
[1740455569241,0.001,92773.0,92749.0,0.1262]
[1740455569419,0.002,92762.0,92749.0,0.1262]
[1740455569649,0.002,92762.0,92749.0,0.0499]
[1740455569871,0.002,92762.0,92750.0,0.07780934]
[1740455570547,0.002,92773.0,92750.0,0.07780934]
[1740455570776,0.00135769,92772.0,92750.0,0.07780934]
[1740455571448,0.006,92773.0,92750.0,0.08080934]
[1740455572261,0.0008487,92774.0,92750.0,0.08080934]
[1740455572494,0.002,92762.0,92750.0,0.08080934]
[1740455572615,0.002,92762.0,92750.0,0.07780934]
[1740455573026,0.01691726,92768.0,92750.0,0.07780934]
[1740455573675,0.01691726,92768.0,92750.0,0.08080934]
[1740455573891,0.01691726,92768.0,92750.0,0.07780934]
[1740455574118,0.01691726,92768.0,92750.0,0.08380934]
[1740455574518,0.01691726,92768.0,92750.0,0.07980934]
[1740455575151,0.01691726,92768.0,92752.0,0.0763]
[1740455575322,0.01691726,92768.0,92753.0,0.00150916]
[1740455576040,0.01691726,92768.0,92754.0,0.29196645]
[1740455576430,0.01691726,92768.0,92755.0,0.00150916]
[1740455576670,0.01691726,92768.0,92756.0,0.0831]
[1740455576819,0.01691726,92768.0,92757.0,0.00150916]
[1740455577408,0.01691726,92768.0,92758.0,0.0758]
[1740455579623,0.01691726,92768.0,92758.0,0.0798]
[1740455580736,0.0008488,92773.0,92758.0,0.0798]
[1740455582154,0.0028488,92773.0,92758.0,0.37176645]
[1740455582398,0.0028488,92773.0,92758.0,0.36776645]
[1740455582836,0.0028488,92773.0,92758.0,0.37076645]
[1740455583723,0.0028488,92773.0,92759.0,0.01]
[1740455584850,0.0008488,92773.0,92759.0,0.01]
[1740455585108,0.0008488,92768.0,92759.0,0.01]
[1740455585314,0.0008488,92768.0,92758.0,0.37076645]
[1740455585521,0.00135769,92767.0,92758.0,0.29196645]
[1740455585878,0.00135769,92767.0,92759.0,0.003]
[1740455586891,0.00135769,92767.0,92758.0,0.29196645]
[1740455587097,0.00135769,92767.0,92759.0,0.001]
[1740455587273,0.00135769,92767.0,92758.0,0.29196645]
[1740455587944,0.00135769,92767.0,92746.0,0.0016974]
[1740455588138,0.00435769,92767.0,92746.0,0.0016974]
[1740455588345,0.0765,92766.0,92746.0,0.0016974]
[1740455588569,0.00952834,92765.0,92746.0,0.0016974]
[1740455588721,0.00952834,92765.0,92759.0,0.001]
[1740455588926,0.02,92755.0,92746.0,0.0016974]
[1740455589129,0.15,92752.0,92746.0,0.0016974]
[1740455589352,0.00135769,92751.0,92748.0,0.00312709]
[1740455589550,0.0806,92750.0,92748.0,0.00212709]
[1740455589752,0.08195769,92749.0,92748.0,0.00212709]
[1740455590105,0.32226346,92749.0,92748.0,0.00212709]
[1740455590307,0.32226346,92749.0,92746.0,0.0016974]
[1740455590308,0.15,92748.0,92746.0,0.0016974]
[1740455590506,0.29745769,92747.0,92746.0,0.00182626]
[1740455590706,0.29642335,92747.0,92746.0,0.00182626]
[1740455590931,0.02,92735.0,92713.0,0.09667181]
[1740455591050,0.15,92733.0,92730.0,0.0017393]
[1740455591263,0.05896346,92732.0,92730.0,0.0017393]
[1740455591464,0.62940967,92731.0,92730.0,0.0017393]
[1740455592817,0.63340967,92731.0,92730.0,0.0017393]
[1740455593535,0.62440967,92731.0,92730.0,0.0017393]
[1740455593713,0.63640967,92731.0,92730.0,0.0017393]
[1740455593919,0.63340967,92731.0,92730.0,0.0017393]
[1740455594120,0.71066749,92731.0,92730.0,0.0017393]
[1740455594647,0.62435782,92731.0,92730.0,0.0017393]
[1740455595589,0.62835782,92731.0,92730.0,0.0017393]
[1740455595741,0.63535782,92731.0,92730.0,0.0017393]
[1740455595950,0.62735782,92731.0,92730.0,0.0017393]
[1740455596192,0.62035782,92731.0,92730.0,0.0017393]
[1740455596541,0.62735782,92731.0,92730.0,0.0017393]
[1740455596737,0.64428801,92731.0,92730.0,0.0017393]
[1740455597191,0.62035782,92731.0,92730.0,0.0017393]
[1740455597563,0.02,92705.0,92679.0,8.85e-05]
[1740455597761,0.00135769,92704.0,92679.0,0.00051862]
[1740455597964,0.02514577,92703.0,92679.0,0.00051862]
[1740455598161,0.00135769,92702.0,92679.0,0.00051862]
[1740455599932,0.00835769,92702.0,92679.0,0.00051862]
[1740455600318,0.00135769,92702.0,92679.0,0.00051862]
[1740455600515,0.00835769,92702.0,92679.0,0.00051862]
[1740455600717,0.007,92702.0,92679.0,0.00051862]
[1740455600942,0.00135769,92701.0,92679.0,0.00051862]
[1740455602180,0.007,92702.0,92679.0,0.00042438]
[1740455602350,0.00135769,92701.0,92679.0,0.00042438]
[1740455603095,0.01693228,92696.0,92679.0,0.00042438]
[1740455603236,0.00135769,92695.0,92679.0,0.00042438]
[1740455604236,0.02301769,92695.0,92679.0,0.00042438]
[1740455604408,0.00135769,92695.0,92679.0,0.00042438]
[1740455604584,0.01693228,92696.0,92679.0,0.00042438]
[1740455604967,0.00135769,92695.0,92679.0,0.00042438]
[1740455605194,0.2452915,92715.0,92679.0,0.00042438]
[1740455605403,0.007,92695.0,92679.0,0.00042438]
[1740455605738,0.00135769,92694.0,92679.0,0.00042438]
[1740455605940,0.00135769,92713.0,92679.0,0.00042438]
[1740455606099,0.007,92695.0,92679.0,0.00042438]
[1740455606301,0.00135769,92694.0,92679.0,0.00042438]
[1740455606683,0.00135769,92713.0,92679.0,0.00042438]
[1740455606883,0.007,92694.0,92679.0,0.00042438]
[1740455607112,0.00135769,92693.0,92679.0,0.00042438]